[Event "CZE-ch Youth B14 2022"]
[Site "Luhacovice"]
[Date "2022.03.16"]
[Round "6.10"]
[White "Sigut, Ondrej"]
[Black "Hozda, Max"]
[Result "1/2-1/2"]
[ECO "B13"]
[WhiteElo "1536"]
[BlackElo "1901"]
[Annotator "ChessBase"]
[PlyCount "117"]
[EventDate "2022.03.12"]
[EventType "swiss"]
[EventCountry "CZE"]
[SourceTitle "playchess.com"]
[Source "ChessBase"]
[SourceQuality "1"]
[TimeControl "40/5400+30:1800+30"]

1. e4 {[%emt 0:00:03]} c6 {[%emt 0:00:06]} 2. d4 {[%emt 0:00:06]} d5 {[%emt 0:00:05]} 3. exd5 {[%emt 0:00:07]} cxd5 {[%emt 0:00:06]} 4. Bd3 {[%emt 0:00:08]} Nc6 {[%emt 0:00:06]} 5. c3 {[%emt 0:00:09]} Nf6 {[%emt 0:00:18]} 6. Bf4 {[%emt 0:00:22]} g6 {[%emt 0:09:22]} 7. Nf3 {[%emt 0:02:00]} Bg7 {[%emt 0:00:28]} 8. O-O {[%emt 0:00:55]} O-O {[%emt 0:00:11]} 9. Re1 {[%emt 0:00:51]} Bf5 {[%emt 0:01:34]} 10. Bxf5 {[%emt 0:04:04]} gxf5 {[%emt 0:00:02]} 11. Ne5 {[%emt 0:02:52]} Ne4 {[%emt 0:11:28]} 12. Nxc6 {[%emt 0:06:22]} bxc6 {[%emt 0:00:11]} 13. Qe2 {[%emt 0:01:40]} e6 {[%emt 0:01:38]} 14. f3 {[%emt 0:01:27]} Nd6 {[%emt 0:02:34]} 15. Nd2 {[%emt 0:05:54]} Nb7 {[%emt 0:17:41]} 16. Nb3 {[%emt 0:05:38]} Qe7 {[%emt 0:06:02]} 17. Qf2 {[%emt 0:04:54]} f6 {[%emt 0:13:25]} 18. Re2 {[%emt 0:09:07]} Rfe8 {[%emt 0:01:14]} 19. Rae1 {[%emt 0:00:41]} Qd7 {[%emt 0:00:38]} 20. Qg3 {[%emt 0:04:55]} Kh8 {[%emt 0:04:08]} 21. Re3 {[%emt 0:06:35]} Rac8 {[%emt 0:03:41]} 22. R3e2 {[%emt 0:09:15]} c5 {[%emt 0:02:26]} 23. dxc5 {[%emt 0:01:11]} Nxc5 {[%emt 0:00:26]} 24. Nxc5 {[%emt 0:00:51]} Rxc5 {[%emt 0:00:08]} 25. Qh3 {[%emt 0:06:50]} Rcc8 {[%emt 0:06:16]} 26. Bh6 {[%emt 0:03:01]} e5 {[%emt 0:06:53]} 27. Bxg7+ {[%emt 0:01:06]} Kxg7 {[%emt 0:00:04]} 28. Qg3+ {[%emt 0:00:45]} Kh8 {[%emt 0:00:25]} 29. Rd2 {[%emt 0:02:52]} f4 {[%emt 0:01:32]} 30. Qf2 {[%emt 0:02:31]} Red8 {[%emt 0:01:21]} 31. Red1 {[%emt 0:01:24]} Qb7 {[%emt 0:01:19]} 32. h3 {[%emt 0:02:47]} Rc7 {[%emt 0:02:52]} 33. Kh2 {[%emt 0:03:10]} Qc6 {[%emt 0:02:18]} 34. Rd3 {[%emt 0:03:18]} Rcd7 {[%emt 0:01:11]} 35. a3 {[%emt 0:03:50]} f5 {[%emt 0:01:21]} 36. R3d2 {[%emt 0:01:51]} Qc7 {[%emt 0:01:02]} 37. Kh1 {[%emt 0:01:44]} e4 {[%emt 0:01:02]} 38. fxe4 {[%emt 0:00:28]} fxe4 {[%emt 0:01:57]} 39. Qd4+ {[%emt 0:00:41]} Kg8 {[%emt 0:01:07]} 40. Rf2 {[%emt 0:00:00]} Rf7 {[%emt 0:00:00]} 41. c4 {[%emt 0:04:29]} e3 {[%emt 0:27:00]} 42. Re2 {[%emt 0:04:47]} Rfd7 {[%emt 0:04:15]} 43. c5 {[%emt 0:01:41]} Rf7 {[%emt 0:01:26]} 44. b4 {[%emt 0:02:32]} Qc6 {[%emt 0:00:29]} 45. Rf1 {[%emt 0:01:31]} Qb5 {[%emt 0:00:32]} 46. Rfe1 {[%emt 0:01:54]} Qc4 {[%emt 0:00:31]} 47. Qxc4 {[%emt 0:00:55]} dxc4 {[%emt 0:00:01]} 48. Rc2 {[%emt 0:00:40]} Rd4 {[%emt 0:00:49]} 49. Kg1 {[%emt 0:00:58]} Kf8 {[%emt 0:00:19]} 50. c6 {[%emt 0:01:40]} Ke8 {[%emt 0:00:26]} 51. b5 {[%emt 0:01:11]} Re7 {[%emt 0:00:43]} 52. Kf1 {[%emt 0:00:47]} Kd8 {[%emt 0:00:29]} 53. Ke2 {[%emt 0:00:44]} Kc7 {[%emt 0:00:43]} 54. Rd1 {[%emt 0:00:35]} Ree4 {[%emt 0:00:32]} 55. Rxd4 {[%emt 0:01:46]} Rxd4 {[%emt 0:00:02]} 56. a4 {[%emt 0:01:20]} c3 {[%emt 0:00:59]} 57. Rxc3 {[%emt 0:01:04]} Rxa4 {[%emt 0:00:21]} 58. g3 Ra2+ 59. Kf1 1/2-1/2

[Event "CZE-ch Youth B14 2022"]
[Site "Luhacovice"]
[Date "2022.03.16"]
[Round "6.11"]
[White "Mrazek, Adam"]
[Black "Vysinsky, Otakar"]
[Result "0-1"]
[ECO "D18"]
[WhiteElo "1582"]
[BlackElo "1534"]
[Annotator "NA"]
[PlyCount "88"]
[EventDate "2022.03.12"]
[EventType "swiss"]
[EventCountry "CZE"]
[SourceTitle "playchess.com"]
[Source "ChessBase"]
[SourceQuality "1"]
[TimeControl "40/5400+30:1800+30"]

1. d4 {[%emt 0:00:03]} d5 {[%emt 0:00:05]} 2. c4 {[%emt 0:00:05]} c6 {[%emt 0:00:03]} 3. Nf3 {[%emt 0:00:10]} Nf6 {[%emt 0:00:12]} 4. Nc3 {[%emt 0:00:42]} dxc4 {[%emt 0:00:46]} 5. a4 {[%emt 0:02:54]} Bf5 {[%emt 0:01:50]} 6. e3 {[%emt 0:08:12]} e6 {[%emt 0:02:00]} 7. Bxc4 {[%emt 0:00:40]} Bb4 {[%emt 0:02:29]} 8. O-O {[%emt 0:02:06]} Nbd7 {[%emt 0:01:46]} 9. Bd2 {[%emt 0:11:57]} O-O {[%emt 0:03:01]} 10. Ne2 {[%emt 0:07:05]} Bxd2 {[%emt 0:07:55]} 11. Nxd2 {[%emt 0:02:25]} e5 {[%emt 0:06:32]} 12. b4 {[%emt 0:10:52]} exd4 {[%emt 0:06:16]} 13. Nxd4 {[%emt 0:01:18]} Bg6 {[%emt 0:00:42]} 14. N2f3 {[%emt 0:20:53]} Qc7 {[%emt 0:08:41]} 15. Bd3 {[%emt 0:03:35]} Bxd3 {[%emt 0:03:40]} 16. Qxd3 {[%emt 0:00:09]} Rad8 {[%emt 0:00:49]} 17. Rfd1 {[%emt 0:04:22]} Ne5 {[%emt 0:03:49]} 18. Nxe5 {[%emt 0:05:03]} Qxe5 {[%emt 0:00:03]} 19. Qe2 {[%emt 0:00:28]} Rd5 {[%emt 0:09:10]} 20. Rac1 {[%emt 0:04:16]} Rfd8 {[%emt 0:02:04]} 21. Qf3 {[%emt 0:00:41]} Qe4 {[%emt 0:05:44]} 22. Qxe4 {[%emt 0:03:48]} Nxe4 {[%emt 0:00:02]} 23. f3 {[%emt 0:00:15]} Ng5 {[%emt 0:01:49]} 24. Re1 {[%emt 0:05:54]} Kf8 {[%emt 0:05:19]} 25. b5 {[%emt 0:04:20]} c5 {[%emt 0:01:33]} 26. Nb3 {[%emt 0:00:27]} b6 {[%emt 0:01:05]} 27. Kf2 {[%emt 0:00:43]} Ne6 {[%emt 0:02:37]} 28. a5 {[%emt 0:00:29]} Nc7 {[%emt 0:04:01]} 29. axb6 {[%emt 0:00:30]} axb6 {[%emt 0:00:01]} 30. e4 {[%emt 0:00:31]} Rd3 {[%emt 0:01:35]} 31. Nxc5 {[%emt 0:00:35]} bxc5 {[%emt 0:00:32]} 32. Rxc5 {[%emt 0:00:01]} Ne6 {[%emt 0:00:27]} 33. Rh5 {[%emt 0:00:55]} Rd2+ {[%emt 0:01:06]} 34. Kg3 {[%emt 0:00:14]} Rxg2+ {[%emt 0:00:47]} 35. Kxg2 {[%emt 0:00:26]} Nf4+ {[%emt 0:00:02]} 36. Kg3 {[%emt 0:00:38]} Nxh5+ {[%emt 0:00:03]} 37. Kg4 {[%emt 0:00:08]} Nf6+ {[%emt 0:00:34]} 38. Kf5 {[%emt 0:00:05]} Rb8 {[%emt 0:01:24]} 39. Rb1 {[%emt 0:00:49]} Ke7 {[%emt 0:00:54]} 40. b6 {[%emt 0:00:45]} Nd7 {[%emt 0:01:21]} 41. Rg1 {[%emt 0:30:40]} g6+ {[%emt 0:30:35]} 42. Kg5 {[%emt 0:00:49]} h5 {[%emt 0:05:56]} 43. f4 {[%emt 0:00:00]} Rxb6 {[%emt 0:00:00]} 44. f5 {[%emt 0:00:00]} Ne5 {[%emt 0:00:00]} 0-1

[Event "CZE-ch Youth B14 2022"]
[Site "Luhacovice"]
[Date "2022.03.16"]
[Round "6.12"]
[White "Juhanak, Daniel"]
[Black "Veverka, Vladimir"]
[Result "1-0"]
[ECO "B02"]
[WhiteElo "1688"]
[BlackElo "1723"]
[Annotator "NA"]
[PlyCount "89"]
[EventDate "2022.03.12"]
[EventType "swiss"]
[EventCountry "CZE"]
[SourceTitle "playchess.com"]
[Source "ChessBase"]
[SourceQuality "1"]
[TimeControl "40/5400+30:1800+30"]

1. e4 Nf6 2. e5 Ng8 3. d4 d6 4. Nf3 c5 5. dxc5 Qa5+ 6. Nc3 dxc5 7. Bb5+ Bd7 8. Bxd7+ Nxd7 9. Bd2 e6 10. Qe2 Qb6 11. O-O-O a6 12. Be3 h6 13. Ne4 O-O-O 14. Qc4 Qc6 15. Nd6+ Bxd6 16. Rxd6 Qc7 17. Qh4 Re8 18. Rhd1 Nb6 19. Bxc5 Nd5 20. Qd4 Nge7 21. Bb6 Nxb6 22. Qxb6 Qxb6 23. Rxb6 Kc7 24. Rbd6 Rd8 25. c4 Nf5 26. Rxd8 Rxd8 27. Rxd8 Kxd8 28. Kd2 Kc7 29. Kd3 Kb6 30. Nd4 Nh4 31. g3 Ng6 32. f4 Ne7 33. b4 g6 34. Ke4 h5 35. Kd3 Kc7 36. a3 Kb6 37. Ke4 Kc7 38. Ke3 Kb6 39. Kf3 Kc7 40. Ke3 Kb6 41. Ke4 Kc7 42. Nf3 Kd7 43. Ng5 Ke8 44. Kd3 b6 45. Ne4 1-0

[Event "CZE-ch Youth B14 2022"]
[Site "Luhacovice"]
[Date "2022.03.17"]
[Round "7.1"]
[White "Fizer, Marek"]
[Black "Hladky, Tadeas"]
[Result "1/2-1/2"]
[ECO "C01"]
[WhiteElo "1876"]
[BlackElo "2029"]
[Annotator "ChessBase"]
[PlyCount "107"]
[EventDate "2022.03.12"]
[EventType "swiss"]
[EventCountry "CZE"]
[SourceTitle "playchess.com"]
[Source "ChessBase"]
[SourceQuality "1"]
[TimeControl "40/5400+30:1800+30"]

1. e4 {[%emt 0:00:04]} e6 {[%emt 0:00:12]} 2. d4 {[%emt 0:00:13]} d5 {[%emt 0:00:03]} 3. exd5 {[%emt 0:00:45]} exd5 {[%emt 0:00:06]} 4. Bd3 {[%emt 0:00:13]} Bd6 {[%emt 0:00:08]} 5. Ne2 {[%emt 0:00:17]} Ne7 {[%emt 0:01:21]} 6. O-O {[%emt 0:00:15]} O-O {[%emt 0:00:49]} 7. Bf4 {[%emt 0:01:08]} Bf5 {[%emt 0:08:50]} 8. Bxd6 {[%emt 0:02:53]} Qxd6 {[%emt 0:00:05]} 9. Ng3 {[%emt 0:01:02]} Bxd3 {[%emt 0:01:04]} 10. Qxd3 {[%emt 0:00:35]} Nd7 {[%emt 0:00:57]} 11. Nd2 {[%emt 0:02:57]} g6 {[%emt 0:08:38]} 12. Rfe1 {[%emt 0:06:12]} Rfe8 {[%emt 0:08:36]} 13. Re2 {[%emt 0:07:47]} Nf8 {[%emt 0:02:00]} 14. Nf3 {[%emt 0:05:41]} Ne6 {[%emt 0:02:54]} 15. Qd2 {[%emt 0:00:46]} Nc6 {[%emt 0:09:17]} 16. Rae1 {[%emt 0:01:34]} Re7 {[%emt 0:07:44]} 17. c3 {[%emt 0:03:51]} Rae8 {[%emt 0:02:07]} 18. Ne5 {[%emt 0:00:29]} Nxe5 {[%emt 0:01:05]} 19. dxe5 {[%emt 0:00:12]} Qc5 {[%emt 0:02:11]} 20. Qh6 {[%emt 0:00:25]} Qc4 {[%emt 0:01:42]} 21. Re3 {[%emt 0:18:00]} Qf4 {[%emt 0:01:23]} 22. Qxf4 {[%emt 0:00:25]} Nxf4 {[%emt 0:00:04]} 23. Nf1 {[%emt 0:01:08]} c5 {[%emt 0:02:32]} 24. g3 {[%emt 0:01:16]} Ne6 {[%emt 0:01:14]} 25. f4 {[%emt 0:10:22]} d4 {[%emt 0:03:54]} 26. cxd4 {[%emt 0:00:40]} cxd4 {[%emt 0:01:03]} 27. Rd3 {[%emt 0:00:26]} Rc7 {[%emt 0:01:32]} 28. Kf2 {[%emt 0:01:37]} Rd8 {[%emt 0:04:15]} 29. Red1 {[%emt 0:02:33]} Rd5 {[%emt 0:03:08]} 30. Kf3 {[%emt 0:06:39]} Ra5 {[%emt 0:01:19]} 31. a3 {[%emt 0:01:54]} Rb5 {[%emt 0:00:46]} 32. b4 {[%emt 0:04:07]} a5 {[%emt 0:01:00]} 33. bxa5 {[%emt 0:08:12]} Rxa5 {[%emt 0:00:20]} 34. Nd2 {[%emt 0:02:01]} Rc3 {[%emt 0:02:59]} 35. Ne4 {[%emt 0:00:54]} Rcxa3 {[%emt 0:00:53]} 36. Nf6+ {[%emt 0:00:15]} Kg7 {[%emt 0:00:54]} 37. Rxa3 {[%emt 0:01:02]} Rxa3+ {[%emt 0:00:04]} 38. Ke2 {[%emt 0:03:16]} Ra2+ {[%emt 0:02:49]} 39. Kf3 {[%emt 0:02:02]} Rxh2 {[%emt 0:01:11]} 40. Rc1 {[%emt 0:01:01]} d3 {[%emt 0:02:08]} 41. Rc8 {[%emt 0:30:20]} Nf8 {[%emt 0:32:01]} 42. Rd8 {[%emt 0:01:02]} d2 {[%emt 0:00:31]} 43. Ng4 {[%emt 0:00:25]} Ne6 {[%emt 0:04:18]} 44. Rd5 {[%emt 0:03:03]} Rh1 {[%emt 0:00:51]} 45. Rxd2 {[%emt 0:00:05]} Rc1 {[%emt 0:01:16]} 46. Nf6 {[%emt 0:00:34]} b5 {[%emt 0:01:15]} 47. Ra2 {[%emt 0:01:28]} h5 {[%emt 0:01:40]} 48. Ra8 {[%emt 0:00:40]} Rc3+ {[%emt 0:00:26]} 49. Kf2 {[%emt 0:01:00]} b4 {[%emt 0:00:42]} 50. Rg8+ {[%emt 0:00:00]} Kh6 {[%emt 0:00:00]} 51. Rh8+ {[%emt 0:00:00]} Kg7 {[%emt 0:00:00]} 52. Rh7+ {[%emt 0:00:00]} Kf8 {[%emt 0:00:00]} 53. Rh8+ {[%emt 0:00:00]} Kg7 {[%emt 0:00:00]} 54. Rg8+ 1/2-1/2

[Event "CZE-ch Youth B14 2022"]
[Site "Luhacovice"]
[Date "2022.03.17"]
[Round "7.2"]
[White "Zrubek, Dan"]
[Black "Prazak, Daniel"]
[Result "0-1"]
[ECO "B15"]
[WhiteElo "1478"]
[BlackElo "2016"]
[Annotator "ChessBase"]
[PlyCount "106"]
[EventDate "2022.03.12"]
[EventType "swiss"]
[EventCountry "CZE"]
[SourceTitle "playchess.com"]
[Source "ChessBase"]
[SourceQuality "1"]
[TimeControl "40/5400+30:1800+30"]

1. e4 {[%emt 0:00:03]} c6 {[%emt 0:00:19]} 2. d4 {[%emt 0:00:15]} d5 {[%emt 0:00:01]} 3. Nc3 {[%emt 0:00:22]} dxe4 {[%emt 0:00:03]} 4. Nxe4 {[%emt 0:00:19]} Nf6 {[%emt 0:00:02]} 5. Nxf6+ {[%emt 0:05:53]} exf6 {[%emt 0:00:02]} 6. c3 {[%emt 0:04:00]} Bd6 {[%emt 0:00:12]} 7. Bd3 {[%emt 0:02:24]} O-O {[%emt 0:00:03]} 8. Ne2 {[%emt 0:03:09]} Re8 {[%emt 0:00:05]} 9. O-O {[%emt 0:01:15]} Nd7 {[%emt 0:00:20]} 10. Ng3 {[%emt 0:09:32]} Nf8 {[%emt 0:21:59]} 11. Nf5 {[%emt 0:06:26]} Bxf5 {[%emt 0:10:36]} 12. Bxf5 {[%emt 0:00:08]} Qc7 {[%emt 0:01:53]} 13. h3 {[%emt 0:08:14]} Re7 {[%emt 0:13:40]} 14. Be3 {[%emt 0:03:26]} Rae8 {[%emt 0:01:16]} 15. Qd2 {[%emt 0:02:22]} Ng6 {[%emt 0:04:11]} 16. Bxg6 {[%emt 0:04:31]} hxg6 {[%emt 0:00:50]} 17. Rae1 {[%emt 0:02:07]} f5 {[%emt 0:05:53]} 18. Qc1 {[%emt 0:03:01]} f4 {[%emt 0:18:18]} 19. Bd2 {[%emt 0:00:24]} f3 {[%emt 0:00:01]} 20. gxf3 {[%emt 0:18:55]} Qa5 {[%emt 0:03:29]} 21. a3 {[%emt 0:05:32]} Qh5 {[%emt 0:04:10]} 22. Kg2 {[%emt 0:01:38]} Re6 {[%emt 0:01:17]} 23. Rxe6 {[%emt 0:03:02]} Rxe6 {[%emt 0:00:02]} 24. Qd1 {[%emt 0:02:10]} Rf6 {[%emt 0:00:49]} 25. f4 {[%emt 0:07:50]} Qh6 {[%emt 0:03:05]} 26. Qc1 {[%emt 0:01:56]} Qh4 {[%emt 0:01:34]} 27. Re1 {[%emt 0:01:08]} g5 {[%emt 0:01:05]} 28. Re3 {[%emt 0:02:46]} Bxf4 {[%emt 0:04:00]} 29. Rf3 {[%emt 0:00:38]} Bxd2 {[%emt 0:00:21]} 30. Qxd2 {[%emt 0:00:08]} Rxf3 {[%emt 0:00:06]} 31. Kxf3 {[%emt 0:00:09]} Qxh3+ {[%emt 0:00:02]} 32. Ke2 {[%emt 0:00:46]} Qe6+ {[%emt 0:01:03]} 33. Kd1 {[%emt 0:00:20]} f6 {[%emt 0:00:03]} 34. Qc2 {[%emt 0:00:44]} Qg4+ {[%emt 0:00:43]} 35. Ke1 {[%emt 0:00:13]} Qe6+ {[%emt 0:00:17]} 36. Kd1 {[%emt 0:00:10]} Kf7 {[%emt 0:00:50]} 37. Qa4 {[%emt 0:00:17]} a6 {[%emt 0:00:35]} 38. Qb4 {[%emt 0:00:22]} Qg4+ {[%emt 0:00:58]} 39. Ke1 {[%emt 0:00:09]} Qe4+ {[%emt 0:00:30]} 40. Kd2 {[%emt 0:01:10]} b5 {[%emt 0:00:14]} 41. Qc5 {[%emt 0:30:22]} Kg6 {[%emt 0:30:30]} 42. Qb6 {[%emt 0:00:29]} Qf4+ {[%emt 0:00:25]} 43. Ke2 {[%emt 0:00:11]} Qe4+ {[%emt 0:01:20]} 44. Kd2 {[%emt 0:00:22]} f5 {[%emt 0:00:48]} 45. Qxa6 {[%emt 0:00:52]} f4 {[%emt 0:00:03]} 46. Qc8 {[%emt 0:00:35]} f3 {[%emt 0:00:06]} 47. b3 {[%emt 0:00:39]} Qe2+ {[%emt 0:00:36]} 48. Kc1 {[%emt 0:00:05]} Qe1+ {[%emt 0:00:02]} 49. Kc2 {[%emt 0:00:12]} Qxf2+ {[%emt 0:00:03]} 50. Kb1 {[%emt 0:00:11]} Qe1+ {[%emt 0:00:31]} 51. Kb2 {[%emt 0:00:05]} Qe2+ {[%emt 0:00:01]} 52. Kb1 {[%emt 0:00:06]} Qe4+ {[%emt 0:00:07]} 53. Kb2 {[%emt 0:00:10]} f2 {[%emt 0:00:03]} 0-1

[Event "CZE-ch Youth B14 2022"]
[Site "Luhacovice"]
[Date "2022.03.17"]
[Round "7.4"]
[White "Brozka, Karel"]
[Black "Svoboda, Daniel"]
[Result "1-0"]
[ECO "D93"]
[WhiteElo "2125"]
[BlackElo "1619"]
[Annotator "ChessBase"]
[PlyCount "51"]
[EventDate "2022.03.12"]
[EventType "swiss"]
[EventCountry "CZE"]
[SourceTitle "playchess.com"]
[Source "ChessBase"]
[SourceQuality "1"]
[TimeControl "40/5400+30:1800+30"]

1. d4 {[%emt 0:00:07]} Nf6 {[%emt 0:00:11]} 2. c4 {[%emt 0:00:31]} g6 {[%emt 0:00:11]} 3. Nc3 {[%emt 0:00:31]} d5 {[%emt 0:00:08]} 4. Nf3 {[%emt 0:04:44]} Bg7 {[%emt 0:01:24]} 5. Bf4 {[%emt 0:03:44]} O-O {[%emt 0:00:42]} 6. e3 {[%emt 0:00:57]} c5 {[%emt 0:01:20]} 7. Qb3 {[%emt 0:06:42]} cxd4 {[%emt 0:17:56]} 8. Nxd4 {[%emt 0:08:44]} dxc4 {[%emt 0:03:07]} 9. Bxc4 {[%emt 0:01:05]} Nc6 {[%emt 0:02:13]} 10. Nxc6 {[%emt 0:03:31]} bxc6 {[%emt 0:00:24]} 11. O-O {[%emt 0:01:38]} Qa5 {[%emt 0:03:03]} 12. e4 {[%emt 0:14:36]} e5 {[%emt 0:05:48]} 13. Be3 {[%emt 0:02:11]} Ba6 {[%emt 0:03:32]} 14. Rac1 {[%emt 0:04:10]} Bxc4 {[%emt 0:18:42]} 15. Qxc4 {[%emt 0:01:00]} Rfc8 {[%emt 0:04:23]} 16. Rfd1 {[%emt 0:02:37]} Rab8 {[%emt 0:06:59]} 17. b3 {[%emt 0:01:47]} c5 {[%emt 0:05:19]} 18. Qe2 {[%emt 0:11:01]} h5 {[%emt 0:09:09]} 19. Nd5 {[%emt 0:01:47]} Nxd5 {[%emt 0:01:22]} 20. Rxd5 {[%emt 0:01:06]} Qa3 {[%emt 0:04:19]} 21. Rc4 {[%emt 0:04:40]} Qa6 {[%emt 0:01:46]} 22. Qc2 {[%emt 0:03:39]} Qa5 {[%emt 0:01:54]} 23. h3 {[%emt 0:00:45]} Qe1+ {[%emt 0:02:15]} 24. Kh2 {[%emt 0:00:10]} Bf8 {[%emt 0:02:30]} 25. Rd7 {[%emt 0:02:01]} a5 {[%emt 0:01:26]} 26. Rd1 {[%emt 0:00:30]} 1-0

[Event "CZE-ch Youth B14 2022"]
[Site "Luhacovice"]
[Date "2022.03.17"]
[Round "7.5"]
[White "Dusanek, Michal"]
[Black "Setina, Vaclav"]
[Result "1-0"]
[ECO "D00"]
[WhiteElo "1682"]
[BlackElo "1881"]
[Annotator "NA"]
[PlyCount "95"]
[EventDate "2022.03.12"]
[EventType "swiss"]
[EventCountry "CZE"]
[SourceTitle "playchess.com"]
[Source "ChessBase"]
[SourceQuality "1"]
[TimeControl "40/5400+30:1800+30"]

1. d4 {[%emt 0:00:14]} d5 {[%emt 0:00:05]} 2. Bf4 {[%emt 0:00:35]} Nf6 {[%emt 0:01:15]} 3. e3 {[%emt 0:00:59]} Bf5 {[%emt 0:00:10]} 4. Nd2 {[%emt 0:02:18]} e6 {[%emt 0:00:14]} 5. Ngf3 {[%emt 0:00:56]} Bd6 {[%emt 0:00:16]} 6. Ne5 {[%emt 0:01:31]} O-O {[%emt 0:01:31]} 7. Be2 {[%emt 0:00:21]} Nbd7 {[%emt 0:16:06]} 8. g4 {[%emt 0:02:32]} Bg6 {[%emt 0:00:11]} 9. h4 {[%emt 0:00:18]} h6 {[%emt 0:10:03]} 10. Nxg6 {[%emt 0:04:40]} fxg6 {[%emt 0:00:08]} 11. Bxd6 {[%emt 0:06:23]} cxd6 {[%emt 0:00:06]} 12. Bd3 {[%emt 0:02:33]} Ne4 {[%emt 0:02:30]} 13. Nxe4 {[%emt 0:05:18]} dxe4 {[%emt 0:00:04]} 14. Bxe4 {[%emt 0:00:38]} d5 {[%emt 0:01:28]} 15. Bd3 {[%emt 0:01:12]} Qa5+ {[%emt 0:20:51]} 16. c3 {[%emt 0:03:18]} e5 {[%emt 0:06:37]} 17. Bxg6 {[%emt 0:11:53]} Qb6 {[%emt 0:07:46]} 18. Bf5 {[%emt 0:00:37]} Qxb2 {[%emt 0:14:52]} 19. O-O {[%emt 0:05:06]} Nb6 {[%emt 0:00:15]} 20. Qb3 {[%emt 0:01:32]} Qe2 {[%emt 0:00:39]} 21. Qd1 {[%emt 0:09:05]} Qc4 {[%emt 0:00:25]} 22. dxe5 {[%emt 0:01:10]} Qxc3 {[%emt 0:02:28]} 23. Qd4 {[%emt 0:04:23]} Qxd4 {[%emt 0:01:03]} 24. exd4 {[%emt 0:00:09]} g6 {[%emt 0:00:11]} 25. Be6+ $18 {[%emt 0:02:39]} ({Weaker is} 25. Bxg6 Rf4 $18) 25... Kh8 {[%emt 0:04:26]} 26. f4 {[%emt 0:00:21]} Rae8 {[%emt 0:01:22]} 27. f5 {[%emt 0:00:17]} Re7 {[%emt 0:00:19]} 28. Rac1 {[%emt 0:01:30]} h5 {[%emt 0:01:27]} 29. gxh5 {[%emt 0:04:54]} gxf5 {[%emt 0:01:21]} 30. Rxf5 {[%emt 0:03:01]} Rxf5 {[%emt 0:01:18]} 31. Bxf5 {[%emt 0:00:13]} Nc4 {[%emt 0:01:20]} 32. Bd3 {[%emt 0:02:54]} b5 {[%emt 0:01:41]} 33. Kf2 {[%emt 0:02:51]} Kg7 {[%emt 0:02:50]} 34. Kg3 {[%emt 0:01:17]} Kh6 {[%emt 0:01:03]} 35. Bg6 {[%emt 0:01:13]} a5 {[%emt 0:00:31]} 36. Kf4 {[%emt 0:00:30]} Rc7 {[%emt 0:00:44]} 37. e6 {[%emt 0:02:27]} b4 {[%emt 0:00:32]} 38. Rb1 {[%emt 0:01:23]} Kg7 {[%emt 0:00:43]} 39. Kg5 {[%emt 0:00:34]} Nd2 {[%emt 0:00:19]} 40. h6+ {[%emt 0:01:21]} Kh8 {[%emt 0:00:02]} 41. Rb2 {[%emt 0:31:11]} Nf3+ {[%emt 0:07:04]} 42. Kf6 {[%emt 0:00:00]} Rc6 {[%emt 0:01:58]} 43. Kf7 {[%emt 0:00:00]} Nxh4 {[%emt 0:00:13]} 44. e7 {[%emt 0:00:00]} Rc7 {[%emt 0:00:07]} 45. Rc2 {[%emt 0:00:00]} Rxe7+ {[%emt 0:01:14]} 46. Kxe7 {[%emt 0:00:00]} Nxg6+ {[%emt 0:00:03]} 47. Kf6 {[%emt 0:00:00]} Nh4 {[%emt 0:06:15]} 48. Rf2 {[%emt 0:00:00]} 1-0

[Event "CZE-ch Youth B14 2022"]
[Site "Luhacovice"]
[Date "2022.03.17"]
[Round "7.6"]
[White "Soucek, Jan"]
[Black "Siles, Jan"]
[Result "1-0"]
[ECO "D05"]
[WhiteElo "1849"]
[BlackElo "1548"]
[Annotator "NA"]
[PlyCount "27"]
[EventDate "2022.03.12"]
[EventType "swiss"]
[EventCountry "CZE"]
[SourceTitle "playchess.com"]
[Source "ChessBase"]
[SourceQuality "1"]
[TimeControl "40/5400+30:1800+30"]

1. d4 {[%emt 0:00:32]} d5 {[%emt 0:00:20]} 2. Nf3 {[%emt 0:00:14]} Nf6 {[%emt 0:00:20]} 3. e3 {[%emt 0:00:13]} e6 {[%emt 0:00:14]} 4. Bd3 {[%emt 0:00:19]} c5 {[%emt 0:00:29]} 5. c3 {[%emt 0:00:13]} Bd6 {[%emt 0:01:29]} 6. Nbd2 {[%emt 0:00:12]} Nbd7 {[%emt 0:00:57]} 7. O-O {[%emt 0:00:24]} O-O {[%emt 0:00:24]} 8. e4 {[%emt 0:05:28]} dxe4 {[%emt 0:03:06]} 9. Nxe4 {[%emt 0:00:11]} Nxe4 {[%emt 0:01:31]} 10. Bxe4 {[%emt 0:00:02]} Nf6 {[%emt 0:01:28]} 11. Bc2 {[%emt 0:00:29]} b6 {[%emt 0:03:42]} 12. Bg5 {[%emt 0:03:34]} cxd4 $2 {[%emt 0:08:37]} (12... h6 $11 13. dxc5 Bxc5 14. Bxf6 Qxf6) 13. Qxd4 {[%emt 0:02:48]} Be7 {[%emt 0:02:05]} 14. Bxf6 $18 {[%emt 0:00:29]} 1-0

[Event "CZE-ch Youth B14 2022"]
[Site "Luhacovice"]
[Date "2022.03.17"]
[Round "7.7"]
[White "Juracak, David"]
[Black "Jasso, Matej"]
[Result "0-1"]
[ECO "D00"]
[WhiteElo "1717"]
[BlackElo "1726"]
[Annotator "NA"]
[PlyCount "52"]
[EventDate "2022.03.12"]
[EventType "swiss"]
[EventCountry "CZE"]
[SourceTitle "playchess.com"]
[Source "ChessBase"]
[SourceQuality "1"]
[TimeControl "40/5400+30:1800+30"]

1. d4 {[%emt 0:00:02]} d5 {[%emt 0:00:08]} 2. Bf4 {[%emt 0:00:06]} Nf6 {[%emt 0:00:09]} 3. e3 {[%emt 0:00:08]} c5 {[%emt 0:01:35]} 4. dxc5 {[%emt 0:00:07]} Nc6 {[%emt 0:00:21]} 5. Bb5 {[%emt 0:00:19]} e6 {[%emt 0:02:21]} 6. b4 {[%emt 0:01:00]} Ne4 {[%emt 0:03:42]} 7. f3 {[%emt 0:10:32]} Qf6 {[%emt 0:07:54]} 8. Qd4 {[%emt 0:01:15]} Qg6 {[%emt 0:01:17]} 9. g3 {[%emt 0:06:35]} Nf6 {[%emt 0:01:18]} 10. c3 {[%emt 0:03:53]} Nd7 {[%emt 0:11:37]} 11. Bxc6 {[%emt 0:00:56]} bxc6 {[%emt 0:03:50]} 12. e4 {[%emt 0:04:46]} Be7 {[%emt 0:12:36]} 13. exd5 {[%emt 0:07:24]} exd5 {[%emt 0:03:18]} 14. Ne2 {[%emt 0:01:59]} Ba6 {[%emt 0:01:52]} 15. Na3 {[%emt 0:07:08]} O-O {[%emt 0:01:23]} 16. Kf2 {[%emt 0:01:53]} Bxe2 {[%emt 0:10:24]} 17. Kxe2 {[%emt 0:00:18]} a5 {[%emt 0:00:06]} 18. Bd6 {[%emt 0:14:58]} Bf6 {[%emt 0:02:03]} 19. Qf4 {[%emt 0:00:47]} Rfe8+ {[%emt 0:00:45]} 20. Kf2 {[%emt 0:00:44]} axb4 {[%emt 0:06:53]} 21. Qxb4 {[%emt 0:01:06]} Qd3 {[%emt 0:03:05]} 22. Rhe1 {[%emt 0:17:56]} Qd2+ {[%emt 0:00:14]} 23. Kf1 {[%emt 0:00:50]} Rxe1+ {[%emt 0:00:23]} 24. Rxe1 {[%emt 0:00:07]} Bxc3 {[%emt 0:00:04]} 25. Qb1 {[%emt 0:00:23]} Qxe1+ {[%emt 0:00:12]} 26. Qxe1 {[%emt 0:00:07]} Bxe1 {[%emt 0:00:03]} 0-1